Workbook

Sheet ADA CONSTRUCTION JULY 2025 CAA
A1: DEPARTMENT OF TRANSPORTATION - CALTRANS
A2: DBE Commitment at Award (CAA) on Federally Funded Major Construction Contracts - October 1, 2024 - July 31, 2025
A4: Total Award Amount Year-to-Date (YTD) | C4: Total DBE Commitment Amount YTD | F4: Total Prime Contracts Awarded YTD
A5: 2094812821 | C5: =SUM(C7:C18) -> 479679563.9 | F5: =SUM(C313:C334,I313:I334,F313:F334) -> 123
A6: Groups | C6: Commitment Dollars YTD | D6: Firms YTD | E6: Contracts YTD | F6: % of Contracts | G6: % of DBE $ | H6: % of Total $
A7: Hispanic American Male | C7: =SUMIF(D30:D137,"m", C30:C137) -> 161921496.5 | D7: =COUNTIF(D30:D137,"M") -> 81 | E7: =SUMIF(D30:D137,"M",E30:E137) -> 307 | F7: =E7/E20 -> 0.3211297071 | G7: =C7/C5 -> 0.3375617989 | H7: =C7/A5 -> 0.0772964032
A8: Hispanic American Female | C8: =SUMIF(D30:D137,"F", C30:C137) -> 58211841.08 | D8: =COUNTIF(D30:D137,"F") -> 27 | E8: =SUMIF(D30:D137,"F",E30:E137) -> 124 | F8: =E8/E20 -> 0.129707113 | G8: =C8/C5 -> 0.121355683 | H8: =C8/A5 -> 0.02778856444
A9: African American Male | C9: =SUMIF(D157:D176,"m", C157:C176) -> 14071205.1 | D9: =COUNTIF(D157:D176,"M") -> 15 | E9: =SUMIF(D157:D176,"M",E157:E176) -> 37 | F9: =E9/E20 -> 0.03870292887 | G9: =C9/C5 -> 0.02933459367 | H9: =C9/A5 -> 0.006717165829
A10: African American Female | C10: =SUMIF(D157:D176,"F", C157:C176) -> 7712982.24 | D10: =COUNTIF(D157:D176,"F") -> 4 | E10: =SUMIF(D157:D176,"F",E157:E176) -> 14 | F10: =E10/E20 -> 0.01464435146 | G10: =C10/C5 -> 0.01607944724 | H10: =C10/A5 -> 0.003681943399
A11: Asian Pacific Male | C11: =SUMIF(D202:D223,"m", C202:C223) -> 18462420.56 | D11: =COUNTIF(D202:D223,"M") -> 14 | E11: =SUMIF(D202:D223,"M",E202:E223) -> 51 | F11: =E11/E20 -> 0.05334728033 | G11: =C11/C5 -> 0.03848907052 | H11: =C11/A5 -> 0.008813398683
A12: Asian Pacific Female | C12: =SUMIF(D202:D223,"F", C202:C223) -> 21173394.66 | D12: =COUNTIF(D202:D223,"F") -> 7 | E12: =SUMIF(D202:D223,"F",E202:E223) -> 46 | F12: =E12/E20 -> 0.04811715481 | G12: =C12/C5 -> 0.04414070612 | H12: =C12/A5 -> 0.01010753536
A13: Subcontinent Asian Male | C13: =SUMIF(D179:D199,"m", C179:C199) -> 21568272.05 | D13: =COUNTIF(D179:D199,"M") -> 16 | E13: =SUMIF(D179:D199,"M",E179:E199) -> 52 | F13: =E13/E20 -> 0.05439330544 | G13: =C13/C5 -> 0.0449639169 | H13: =C13/A5 -> 0.01029603783
A14: Subcontinent Asian Female | C14: =SUMIF(D179:D199,"F", C179:C199) -> 0 | D14: =COUNTIF(D179:D199,"F") -> 0 | E14: =SUMIF(D179:D199,"F",E179:E199) -> 0 | F14: =E14/E20 -> 0 | G14: =C14/C5 -> 0 | H14: =C14/A5 -> 0
A15: Native American Male | C15: =SUMIF(D141:D154,"m", C141:C154) -> 15047840.69 | D15: =COUNTIF(D141:D154,"M") -> 7 | E15: =SUMIF(D141:D154,"M",E141:E154) -> 27 | F15: =E15/E20 -> 0.02824267782 | G15: =C15/C5 -> 0.03137061035 | H15: =C15/A5 -> 0.007183381989
A16: Native American Female | C16: =SUMIF(D141:D154,"F", C141:C154) -> 7876625.15 | D16: =COUNTIF(D141:D154,"F") -> 5 | E16: =SUMIF(D141:D154,"F",E141:E154) -> 9 | F16: =E16/E20 -> 0.009414225941 | G16: =C16/C5 -> 0.01642059771 | H16: =C16/A5 -> 0.003760061553
A17: Non Minority Women | C17: =SUMIF(D230:D308,"F", C230:C308) -> 153575405.9 | D17: =COUNTIF(D230:D308,"F") -> 76 | E17: =SUMIF(D230:D308,"F",E230:E308) -> 288 | F17: =E17/E20 -> 0.3012552301 | G17: =C17/C5 -> 0.3201624948 | H17: =C17/A5 -> 0.07331223313
A18: Other Men | C18: =SUMIF(D226:D227,"m", C226:C227) -> 58080 | D18: =COUNTIF(D226:D227,"M") -> 1 | E18: =SUMIF(D226:D227,"M",E226:E227) -> 1 | F18: =E18/E20 -> 0.001046025105 | G18: =C18/C5 -> 0.0001210808306 | H18: =C18/A5 -> 2.772562752e-05
F19: =E19/E20 -> 0 | G19: =C19/C5 -> 0 | H19: =C19/A5 -> 0
A20: Total | C20: =SUM(C7:C18) -> 479679563.9 | D20: =SUM(D7:D19) -> 253 | E20: =SUM(E7:E19) -> 956
A21: Total Primes Contracts | C21: =SUM(C313:C334,I313:I334,F313:F334) -> 123
A23: Yellow = DBEs | C23: Green = Trucking | D23: =COUNTIF(B30:B308,43) -> 47 | E23: =SUMIF(B29:B308,"43",C29:C308) -> 58226845.97 | F23: =E23/C5 -> 0.121386964
A24: Red = Prime Contractor | C24: Blue = Supplier | D24: =COUNTIF(B30:B308,33) -> 46 | E24: =SUMIF(B29:B308,"33",C29:C308) -> 147315237.4 | F24: =E24/C5 -> 0.3071117648
A25: Red Italic = DBE firm as Prime | C25: White = Other | D25: =COUNTIF(B30:B308,-4142) -> 160 | E25: =C5-(E23+E24) -> 274137480.5 | F25: =E25/C5 -> 0.5715012712
A26: BOLD = women
A27: * = Used both as Trucking & Supplier
A29: Hispanic American | B29: Column1 | C29: Dollars | D29: M/F | E29: # of Contracts | F29: Contract # | G29: # of Primes | H29: Prime Name | I29: Districts
A30: 3P LANDSCAPING | B30: -4142 | C30: 13500 | D30: M | E30: 1 | F30: =FETCHCOMMENT(E30) -> 07-355204 | G30: 1 | H30: =FETCHCOMMENT(G30) -> GRANITE CONSTRUCTION COMPANY | I30: 7
A31: 1 PASS SWEEPING, INC. | B31: 43 | C31: 331500 | D31: M | E31: 3 | F31: =FETCHCOMMENT(E31) -> 12-0K91U4 07-348204 12-0R3114 | G31: 3 | H31: =FETCHCOMMENT(G31) -> GRANITE CONSTRUCTION COMPANY BOSCO CONSTRUCTORS, INC. BEADOR CONSTRUCTION COMPANY, INC. | I31: 7,12
A32: A STAR SWEEPING | B32: -4142 | C32: 17200 | D32: M | E32: 1 | F32: =FETCHCOMMENT(E32) -> 04-0Q2004 | G32: 1 | H32: =FETCHCOMMENT(G32) -> GHILOTTI BROS., INC. | I32: 4
A33: A&M CONSULTING ENGINEERS | B33: -4142 | C33: 226800 | D33: M | E33: 12 | F33: =FETCHCOMMENT(E33) -> 08-1J6104 04-0K6404 04-2K7404 03-3H8304 04-2Q8004 05-1H6504 04-0K8004 05-1J8604 07-347904 07-351704 12-0R3114 10-1H7004 | G33: 12 | H33: =FETCHCOMMENT(G33) -> FBD VANGUARD CONSTRUCTION, INC. O.C. JONES & SONS INC BAY CITIES PAVING & GRADING PACIFIC INFRASTRUCTURE CONSTRUCTION, LLC GORDON N. BALL, INC. GRANITE CONSTRUCTION COMPANY GHILOTTI BROS INC PAPICH CONSTRUCTION COMPANY RASMUSSEN/VANGUARD C. A. RASMUSSEN, INC. BEADOR CONSTRUCTION COMPANY, INC. GEORGE REED, INC. | I33: 3,4,5,7,8,10,12
A34: ABSL CONSTRUCTION | B34: -4142 | C34: 3860936.47 | D34: M | E34: 27 | F34: =FETCHCOMMENT(E34) -> 03-4H8704 05-1J7804 02-3H6904 04-2Q6104 07-333604 10-0Q2104 01-0F7104 04-0P9204 04-2K7404 04-3J2604 05-1H6504 06-487404 10-1L2804 04-0K8004 04-2Q5504 07-346804 09-374704 10-1L8704 06-0Y1704 07-347904 05-1N3404 01-0K8904 04-2K3604 10-1H7004 04-0AA624 04-0Q1304 04-2Q5204 | G34: 15 | H34: =FETCHCOMMENT(G34) -> O.C. JONES & SONS INC CALPORTLAND CONSTRUCTION DIG IT CONSTRUCTION, INC. GRANITE ROCK COMPANY SULLY-MILLER CONTRACTING COMPANY BAY CITIES PAVING & GRADING, INC. GHILOTTI CONSTRUCTION COMPANY INC MYERS & SONS CONSTRUCGTION LLC GHILOTTI BROS INC TORO ENTERPRISES INC PAPICH CONSTRUCTION COMPANY RASMUSSEN/VANGUARD SOUZA ENGINEERING CONTRACTING, INC. DBA SOUZA CONSTRUCTION GRANITE CONSTRUCTION COMPANY GEORGE REED, INC. | I34: 1,2,3,4,5,6,7,9,10
A35: ADVANTAGE DEMOLITION & GRADING, INC. | B35: -4142 | C35: 450000 | D35: M | E35: 1 | F35: =FETCHCOMMENT(E35) -> 06-487404 | G35: 1 | H35: =FETCHCOMMENT(G35) -> GRANITE CONSTRUCTION COMPANY | I35: 6
A36: ALCORN FENCE COMPANY | B36: -4142 | C36: 3181096.15 | D36: M | E36: 6 | F36: =FETCHCOMMENT(E36) -> 08-1J6104 12-0R32U4 05-1J8604 07-348204 07-346304 07-355204 | G36: 6 | H36: =FETCHCOMMENT(G36) -> FBD VANGUARD CONSTRUCTION, INC. R.J. NOBLE COMPANY PAPICH CONSTRUCTION COMPANY, INC. BOSCO CONSTRUCTORS, INC. CHUMO CONSTRUCTION, INC. GRANITE CONSTRUCTION COMPANY | I36: 5,7,8,12
A37: ALEXIS TRUCKING | B37: 43 | C37: 116160 | D37: F | E37: 1 | F37: =FETCHCOMMENT(E37) -> 08-1M0404 | G37: 1 | H37: =FETCHCOMMENT(G37) -> INTERSTATE CIVIL CONSTRUCTION | I37: 8
A38: ATHENA TRUCKING | B38: 43 | C38: 200000 | D38: M | E38: 1 | F38: =FETCHCOMMENT(E38) -> 12-0K91U4 | G38: 1 | H38: =FETCHCOMMENT(G38) -> GRANITE CONSTRUCTION COMPANY | I38: 12
A39: AUSTIN ENTERPRISE | B39: -4142 | C39: 1547578.08 | D39: F | E39: 16 | F39: =FETCHCOMMENT(E39) -> 11-430384 05-1J7804 08-1J6104 04-2K7404 04-2Q8004 05-1K4504 05-1K6404 06-487404 12-0K91U4 08-1K6904 04-0K8004 04-2Q5504 07-347904 07-351704 08-1M7404 10-1H7004 | G39: 11 | H39: =FETCHCOMMENT(G39) -> HAZARD CONSTRUCTION ENGINEERING INC CALPORTLAND CONSTRUCTION FBD VANGUARD CONSTRUCTION, INC. BAY CITIES PAVING & GRADING, INC. GORDON N. BALL, INC. GRANITE CONSTRUCTION COMPANY GHILOTTI BROS INC RASMUSSEN/VANGUARD C. A. RASMUSSEN, INC. INTERSTATE CIVIL CONSTRUCTION GEORGE REED, INC. | I39: 4,5,6,7,8,10,11,12
A40: BAY LINE CUTTING & CORING | B40: -4142 | C40: 513089.78 | D40: M | E40: 4 | F40: =FETCHCOMMENT(E40) -> 05-1H6504 04-0Q2004 04-0Q1304 04-2Q5204 | G40: 4 | H40: =FETCHCOMMENT(G40) -> GRANITE CONSTRUCTION COMPANY GHILOTTI BROS., INC. O.C. JONES & SONS, INC. BAY CITIES PAVING & GRADING, INC. | I40: 4,5
A41: BCK CONSULTING | B41: -4142 | C41: 9000 | D41: F | E41: 1 | F41: =FETCHCOMMENT(E41) -> 01-0H6504 | G41: 1 | H41: =FETCHCOMMENT(G41) -> WAHLUND CONSTRUCTION, INC. | I41: 1
A42: BT TRUCKING, INC. | B42: 43 | C42: 627744 | D42: M | E42: 2 | F42: =FETCHCOMMENT(E42) -> 07-351704 07-369704 | G42: 1 | H42: =FETCHCOMMENT(G42) -> C. A. RASMUSSEN, INC. | I42: 7
A43: C&N REINFORCING INC | B43: -4142 | C43: 597355.96 | D43: M | E43: 4 | F43: =FETCHCOMMENT(E43) -> 04-2Q5504 04-0P9304 05-1G9504 05-1G9504 | G43: 3 | H43: =FETCHCOMMENT(G43) -> BAY CITIES PAVING & GRADING INC BUGLER CONSTRUCTION, INC. GORDON N BALL INC | I43: 4, 5
A44: CENTRAL COAST TRAFFIC SAFETY | B44: 33 | C44: 547549.3 | D44: M | E44: 4 | F44: =FETCHCOMMENT(E44) -> 05-1Q03U4 05-1J8604 05-1N3404 07-355204 | G44: 3 | H44: =FETCHCOMMENT(G44) -> PAPICH CONSTRUCTION COMPANY, INC. SOUZA ENGINEERING CONTRACTING, INC. DBA SOUZA CONSTRUCTION GRANITE CONSTRUCTION COMPANY | I44: 5,7
A45: CENTRAL VALLEY REINFORCING | B45: 33 | C45: 13350 | D45: M | E45: 1 | F45: =FETCHCOMMENT(E45) -> 05-1N3404 | G45: 1 | H45: =FETCHCOMMENT(G45) -> SOUZA ENGINEERING CONTRACTING, INC. DBA SOUZA CONSTRUCTION | I45: 5
A46: CHAVEZ TRUCKING | B46: 43 | C46: 2408174.64 | D46: F | E46: 5 | F46: =FETCHCOMMENT(E46) -> 04-2Q6104 04-2K7404 04-3J2604 04-2Q8004 04-2Q5204 | G46: 4 | H46: =FETCHCOMMENT(G46) -> GRANITE ROCK COMPANY BAY CITIES PAVING & GRADING, INC. O.C. JONES & SONS, INC. GORDON N. BALL, INC. | I46: 4
A47: COASTLINE COMMERCIAL SWEEPERS INC | B47: 43 | C47: 287910 | D47: F | E47: 2 | F47: =FETCHCOMMENT(E47) -> 07-332304 07-346804 | G47: 1 | H47: =FETCHCOMMENT(G47) -> TORO ENTERPRISES INC | I47: 7
A48: COVARRUBIAS TRAFFIC CONTROL | B48: -4142 | C48: 1002000 | D48: F | E48: 3 | F48: =FETCHCOMMENT(E48) -> 07-4X9704 08-1K4004 12-0R3114 | G48: 1 | H48: =FETCHCOMMENT(G48) -> BEADOR CONSTRUCTION COMPANY, INC. | I48: 7,8,12
A49: CUJO CONSTRUCTION INC | B49: 33 | C49: 262582 | D49: F | E49: 3 | F49: =FETCHCOMMENT(E49) -> 07-358404 12-0K91U4 12-0S8404 | G49: 2 | H49: =FETCHCOMMENT(G49) -> YAKAR GRANITE CONSTRUCTION COMPANY BAKER ELECTRIC & RENEWABLES, LLC | I49: 7,12
A50: D.B. ELECTRIC INC | B50: -4142 | C50: 6998336 | D50: M | E50: 3 | F50: =FETCHCOMMENT(E50) -> 08-1J3004 12-0R3114 08-1J5404 | G50: 3 | H50: =FETCHCOMMENT(G50) -> SULLY-MILLER CONTRACTING COMPANY BEADOR CONSTRUCTION COMPANY, INC. FLATIRON WEST | I50: 8,12
A51: D.C. DRILLING INC | B51: -4142 | C51: 10770.94 | D51: M | E51: 1 | F51: =FETCHCOMMENT(E51) -> 12-0S8404 | G51: 1 | H51: =FETCHCOMMENT(G51) -> BAKER ELECTRIC & RENEWABLES, LLC | I51: 12
A52: DC TRAFFIC CONTROL | B52: -4142 | C52: 615060 | D52: M | E52: 2 | F52: =FETCHCOMMENT(E52) -> 06-487404 07-348204 | G52: 2 | H52: =FETCHCOMMENT(G52) -> GRANITE CONSTRUCTION COMPANY BOSCO CONSTRUCTORS, INC. | I52: 6,7
A53: DELTA BAY CONSULTANTS LLC | B53: -4142 | C53: 18400 | D53: M | E53: 12 | F53: =FETCHCOMMENT(E53) -> 03-4H8704 01-0F7104 02-0K6404 01-0H6404 05-1H6504 05-1K6404 04-4G7804 07-347904 12-0K8704 01-0K8904 02-2J2204 01-0H6504 | G53: 8 | H53: =FETCHCOMMENT(G53) -> O.C. JONES & SONS INC GHILOTTI CONSTRUCTION COMPANY MCCUEN CONSTRUCTION RASMUSSEN/VANGUARD ORTIZ ENTERPRISES INC GRANITE CONSTRUCTION COMPANY HIGHWAY SPECIALTY COMPANY INC WAHLUND CONSTRUCTION, INC. | I53: 1,2,3,4,7,12
A54: DESIGN BUILD ENGINEERING | B54: -4142 | C54: 3264640.1 | D54: M | E54: 7 | F54: =FETCHCOMMENT(E54) -> 07-348404 07-356504 12-0K91U4 12-0R57U4 07-370404 07-347904 07-369704 | G54: 6 | H54: =FETCHCOMMENT(G54) -> ACCU CONSTRUCTION, INC. GRANITE CONSTRUCTION COMPANY SECURITY PAVING COMPANY, INC. GRIFFITH COMPANY RASMUSSEN/VANGUARD C. A. RASMUSSEN, INC. | I54: 7,12
A55: DIRT DYNASTY, INC. | B55: -4142 | C55: 10200 | D55: M | E55: 1 | F55: =FETCHCOMMENT(E55) -> 10-1H7004 | G55: 1 | H55: =FETCHCOMMENT(G55) -> GEORGE REED, INC. | I55: 10
A56: DON MAHAFFEY DRILLING | B56: -4142 | C56: 201426.4 | D56: F | E56: 1 | F56: =FETCHCOMMENT(E56) -> 12-0K8704 | G56: 1 | H56: =FETCHCOMMENT(G56) -> ORTIZ ENTERPRISES INC | I56: 12
A57: DRAGON MATERIAL TRANSPORT | B57: 33 | C57: 739299.97 | D57: F | E57: 4 | F57: =FETCHCOMMENT(E57) -> 05-1H6504 06-487404 04-0K8004 04-4G7804 | G57: 3 | H57: =FETCHCOMMENT(G57) -> GRANITE CONSTRUCTION COMPANY GHILOTTI BROS INC O.C. JONES & SONS, INC. | I57: 4,5,6
A58: DRS REBAR INC | B58: -4142 | C58: 1588757.07 | D58: M | E58: 9 | F58: =FETCHCOMMENT(E58) -> 11-430384 08-1J7204 12-0R3154 07-370404 12-0R32U4 07-347904 12-0R3114 12-OK8704 08-1J5404 | G58: 8 | H58: =FETCHCOMMENT(G58) -> HAZARD CONSTRUCTION ENGR, LLC SULLY-MILLER CONTRACTING COMPANY POWELL CONSTRUCTORS, INC. GRIFFITH COMPANY R.J. NOBLE COMPANY RASMUSSEN/VANGUARD BEADOR CONSTRUCTION COMPANY, INC. ORTIZ ENTERPRISES INC | I58: 7,8,11,12
A59: EIGHTEEN TRUCKING | B59: 43 | C59: 465000 | D59: F | E59: 1 | F59: =FETCHCOMMENT(E59) -> 04-2Q8004 | G59: 1 | H59: =FETCHCOMMENT(G59) -> GORDON N. BALL, INC. | I59: 4
A60: ENDEMIC ENVIRONMENTAL SERVICES | B60: -4142 | C60: 1259945 | D60: M | E60: 11 | F60: =FETCHCOMMENT(E60) -> 03-0J01U4 05-1J7804 12-0R3134 01-0F7104 03-3H8304 08-1J2704 12-0R57U4 08-1K6904 06-0W79U4 01-0H6504 03-0J5604 | G60: 9 | H60: =FETCHCOMMENT(G60) -> MERCER-FRASER COMPANY CALPORTLAND CONSTRUCTION PETERSON-CHASE GENERAL ENGINEERING CONSTRUCTION, INC. GHILOTTI CONSTRUCTION COMPANY PACIFIC INFRASTRUCTURE CONSTRUCTION, LLC SULLY-MILLER CONTRACTING COMPANY SECURITY PAVING COMPANY, INC. GRANITE CONSTRUCTION COMPANY WAHLUND CONSTRUCTION, INC. | I60: 1,3,5,6,8,12
A61: FLASH TRAFFIC INC | B61: -4142 | C61: 84180 | D61: F | E61: 2 | F61: =FETCHCOMMENT(E61) -> 07-332304 07-355204 | G61: 2 | H61: =FETCHCOMMENT(G61) -> TORO ENTERPRISES GRANITE CONSTRUCTION COMPANY | I61: 7
A62: FORTE ENGINEERING | B62: -4142 | C62: 3808431.4 | D62: F | E62: 2 | F62: =FETCHCOMMENT(E62) -> 07-347904 07-346504 | G62: 2 | H62: =FETCHCOMMENT(G62) -> RASMUSSEN/VANGUARD SECURITY PAVING COMPANY, INC. | I62: 7
A63: FRONTLINE TRAFFIC CONTROL | B63: -4142 | C63: 276765 | D63: M | E63: 2 | F63: =FETCHCOMMENT(E63) -> 07-358404 07-348504 | G63: 1 | H63: =FETCHCOMMENT(G63) -> YAKAR | I63: 7
A64: FULL TRAFFIC MAINTENANCE, INC. | B64: -4142 | C64: 740931 | D64: M | E64: 3 | F64: =FETCHCOMMENT(E64) -> 07-351704 12-0K8704 12-0S8404 | G64: 2 | H64: =FETCHCOMMENT(G64) -> C. A. RASMUSSEN, INC. ORTIZ ENTERPRISES INC BAKER ELECTRIC & RENEWABLES, LLC | I64: 7,12
A65: G&F CONCRETE CUTTING | B65: -4142 | C65: 1593133.7 | D65: F | E65: 4 | F65: =FETCHCOMMENT(E65) -> 12-0R57U4 12-0R3114 08-0G8504 08-1J5404 | G65: 4 | H65: =FETCHCOMMENT(G65) -> SECURITY PAVING COMPANY, INC. BEADOR CONSTRUCTION COMPANY, INC. GRANITE CONSTRUCTION COMPANY FLATIRON WEST INC | I65: 8,12
A66: G&G ELECTRIC | B66: -4142 | C66: 5379795 | D66: M | E66: 1 | F66: =FETCHCOMMENT(E66) -> 12-0R3154 | G66: 1 | H66: =FETCHCOMMENT(G66) -> POWELL CONSTRUCTORS, INC. | I66: 12
A67: GALVAN REINFORCING COMPANY | B67: -4142 | C67: 303761.8 | D67: M | E67: 2 | F67: =FETCHCOMMENT(E67) -> 07-350314 07-346504 | G67: 2 | H67: =FETCHCOMMENT(G67) -> CROSSTOWN ELECTRICAL & DATA, INC. SECURITY PAVING COMPANY, INC. | I67: 7
A68: GEO-STRUCTURAL ENGINEERING | B68: -4142 | C68: 864254 | D68: M | E68: 2 | F68: =FETCHCOMMENT(E68) -> 07-4X9704 05-1G9504 | G68: 2 | H68: =FETCHCOMMENT(G68) -> BEADOR CONSTRUCTION COMPANY, INC. GORDON N BALL | I68: 5,7
A69: GLJ CONSTRUCTION | B69: -4142 | C69: 1124000 | D69: M | E69: 1 | F69: =FETCHCOMMENT(E69) -> 01-0H6504 | G69: 1 | H69: =FETCHCOMMENT(G69) -> WAHLUND CONSTRUCTION, INC. | I69: 1
A70: G.O. RODRIGUEZ TRUCKING | B70: 43 | C70: 15120 | D70: M | E70: 1 | F70: =FETCHCOMMENT(E70) -> 07-4X9704 | G70: 1 | H70: =FETCHCOMMENT(G70) -> BEADOR CONSTRUCTION COMPANY, INC. | I70: 7
A71: GOLDEN BAY FENCE PLUS IRON | B71: 33 | C71: 1235267.74 | D71: M | E71: 6 | F71: =FETCHCOMMENT(E71) -> 04-3J2604 05-1H6504 04-0K8004 07-332304 05-1G9504 04-2Q5204 | G71: 6 | H71: =FETCHCOMMENT(G71) -> O.C. JONES & SONS, INC. GRANITE CONSTRUCTION COMPANY GHILOTTI BROS INC TORO ENTERPRISES INC GORDON N BALL INC BAY CITIES PAVING & GRADING, INC. | I71: 4,5,7
A72: GREENCOAST LANDSCAPE, INC. | B72: -4142 | C72: 2185596 | D72: F | E72: 5 | F72: =FETCHCOMMENT(E72) -> 05-1K4504 05-1J8604 07-347904 07-351704 07-360704 | G72: 4 | H72: =FETCHCOMMENT(G72) -> CALPORTLAND CONSTRUCTION PAPICH CONSTRUCTION COMPANY, INC. RASMUSSEN/VANGUARD C. A. RASMUSSEN, INC. | I72: 5,7
A73: H&G CONSTRUCTION | B73: -4142 | C73: 985978.8 | D73: M | E73: 2 | F73: =FETCHCOMMENT(E73) -> 04-2Q5504 04-0Q1304 | G73: 2 | H73: =FETCHCOMMENT(G73) -> BAY CITIES PAVING & GRADING INC O.C. JONES & SONS, INC. | I73: 4
A74: HIGH LIGHT ELECTRIC, INC. | B74: -4142 | C74: 16849371.6 | D74: M | E74: 7 | F74: =FETCHCOMMENT(E74) -> 12-0R3134 11-056404 08-1K4004 12-0K91U4 09-374704 09-379104 06-0W79U4 | G74: 7 | H74: =FETCHCOMMENT(G74) -> PETERSON-CHASE GENERAL ENGINEERING CONSTRUCTION, INC. HAZARD CONSTRUCTION COMPANY BEADOR CONSTRUCTION COMPANY, INC. GRANITE CONSTRUCTION COMPANY PAPICH CONSTRUCTION COMPANY INC ROAD AND HIGHWAY BUILDERS LLC SECURITY PAVING COMPANY, INC. | I74: 6,8,9,11,12
A75: IN-LINE FENCE & RAILING | B75: -4142 | C75: 474725 | D75: M | E75: 1 | F75: =FETCHCOMMENT(E75) -> 12-0K91U4 | G75: 1 | H75: =FETCHCOMMENT(G75) -> GRANITE CONSTRUCTION COMPANY | I75: 12
A76: INLAND GARDENS AND TROPICS | B76: -4142 | C76: 118287.73 | D76: F | E76: 1 | F76: =FETCHCOMMENT(E76) -> 08-1K4004 | G76: 1 | H76: =FETCHCOMMENT(G76) -> BEADOR CONSTRUCTION COMPANY, INC. | I76: 8
A77: J. PEREZ TRANSPORT | B77: 43 | C77: 1174250 | D77: M | E77: 1 | F77: =FETCHCOMMENT(E77) -> 09-379104 | G77: 1 | H77: =FETCHCOMMENT(G77) -> ROAD AND HIGHWAY BUILDERS | I77: 9
A78: JEFFERSON STATE HIGHWAYS INC | B78: -4142 | C78: 5285968.33 | D78: M | E78: 22 | F78: =FETCHCOMMENT(E78) -> 03-4H8704 03-0J01U4 02-3H6904 01-0F7104 01-0J8904 02-0K6404 02-4H03U4 02-1J75U4 02-4H0104 02-4H0704 03-3H8304 04-2Q8004 04-2Q5504 04-2Q6504 07-347904 07-369704 09-366804 01-0K8904 04-2K3604 05-1G9504 03-0J5604 04-2Q5204 | G78: 14 | H78: =FETCHCOMMENT(G78) -> O.C. JONES & SONS INC MERCER-FRASER COMPANY JEFFERSON STATE HIGHWAYS, INC. GHILOTTI CONSTRUCTION COMPANY INC MCCUEN CONSTRUCTION INC HAT CREEK CONSTRUCTION MATERIALS PACIFIC INFRASTRUCTURE CONSTRUCTION, LLC GORDON N. BALL, INC. BAY CITIES PAVING & GRADING INC RASMUSSEN/VANGUARD C. A. RASMUSSEN, INC. PAPICH CONSTRUCTION COMPANY GRANITE CONSTRUCTION COMPANY GHILOTTI BROS., INC. | I78: 1,2,3,4,7,9
A79: JFL ELECTRIC | B79: -4142 | C79: 26008815 | D79: M | E79: 6 | F79: =FETCHCOMMENT(E79) -> 08-1K6904 07-332304 07-346804 12-0R32U4 07-348204 07-350324 | G79: 5 | H79: =FETCHCOMMENT(G79) -> GRANITE CONSTRUCTION COMPANY TORO ENTERPRISES INC R.J. NOBLE COMPANY BOSCO CONSTRUCTORS, INC. JFL ELECTRIC, INC. | I79: 7,8,12
A80: JUNIOR SWEEPING COMPANY LLC | B80: 43 | C80: 117720 | D80: M | E80: 3 | F80: =FETCHCOMMENT(E80) -> 01-0F7104 05-1K6404 10-1H7004 | G80: 3 | H80: =FETCHCOMMENT(G80) -> GHILOTTI CONSTRUCTION COMPANY, INC. GRANITE CONSTRUCTION COMPANY GEORGE REED, INC. | I80: 1,5,10
A81: LA FIRMA INC | B81: -4142 | C81: 3750 | D81: M | E81: 1 | F81: =FETCHCOMMENT(E81) -> 07-370404 | G81: 1 | H81: =FETCHCOMMENT(G81) -> GRIFFITH COMPANY | I81: 7
A82: LA STEEL SERVICES, INC. | B82: -4142 | C82: 658838.2 | D82: M | E82: 2 | F82: =FETCHCOMMENT(E82) -> 08-1K6904 08-0G8504 | G82: 1 | H82: =FETCHCOMMENT(G82) -> GRANITE CONSTRUCTION COMPANY | I82: 8
A83: LASER BRIDGE INDUSTRIAL | B83: 33 | C83: 60070.51 | D83: M | E83: 1 | F83: =FETCHCOMMENT(E83) -> 12-0K8704 | G83: 1 | H83: =FETCHCOMMENT(G83) -> ORTIZ ENTERPRISES INC | I83: 12
A84: LIZ TRANSPORT | B84: 43 | C84: 313556 | D84: F | E84: 1 | F84: =FETCHCOMMENT(E84) -> 07-348204 | G84: 1 | H84: =FETCHCOMMENT(G84) -> BOSCO CONSTRUCTORS, INC. | I84: 7
A85: LOGISTICAL ENTERPRISES | B85: 33 | C85: 1789650.96 | D85: F | E85: 9 | F85: =FETCHCOMMENT(E85) -> 03-4H8704 03-0J01U4 04-0K1004 12-0S1404 04-3J2604 04-0K8004 07-348204 10-1H7004 04-1W0904 | G85: 8 | H85: =FETCHCOMMENT(G85) -> O.C. JONES & SONS INC MERCER-FRASER COMPANY MIKE BROWN ELECTRIC CO. CHUMO CONSTRUCTION INC GHILOTTI BROS INC BOSCO CONSTRUCTORS, INC. GEORGE REED, INC. CROSSTOWN ELECTRICAL & DATA, INC. | I85: 3,4,10,12
A86: LONE STAR LANDSCAPE | B86: -4142 | C86: 1927725 | D86: M | E86: 10 | F86: =FETCHCOMMENT(E86) -> 04-0P9204 04-0P7604 05-1H6504 05-1K6404 04-0K8004 04-3Q8504 04-4G7804 04-0Q2004 05-1G9504 04-1W0904 | G86: 8 | H86: =FETCHCOMMENT(G86) -> MYERS & SONS CONSTRUCTION, LLC. ST. FRANCIS ELECTRIC, LLC. GRANITE CONSTRUCTION COMPANY GHILOTTI BROS INC TENNYSON ELECTRIC INC O.C. JONES & SONS, INC. GORDON N BALL INC CROSSTOWN ELECTRICAL & DATA, INC. | I86: 4,5
A87: LOS MORALES TRUCKING, INC. | B87: 43 | C87: 493140 | D87: M | E87: 2 | F87: =FETCHCOMMENT(E87) -> 08-1K4004 08-1M7404 | G87: 2 | H87: =FETCHCOMMENT(G87) -> BEADOR CONSTRUCTION COMPANY, INC. INTERSTATE CIVIL CONSTRUCTION | I87: 8
A88: M&S ENVIRONMENTAL | B88: 33 | C88: 2682456.45 | D88: M | E88: 4 | F88: =FETCHCOMMENT(E88) -> 02-3H6904 01-0J8904 02-0K6404 01-0J2104 01-0H6504 | G88: 4 | H88: =FETCHCOMMENT(G88) -> DIG IT CONSTRUCTION, INC. MERCER FRASER COMPANY MCCUEN CONSTRUCTION WAHLUND CONSTRUCTION, INC. | I88: 1,2
A89: MADERA CONCRETE COMPANY | B89: -4142 | C89: 333786 | D89: M | E89: 2 | F89: =FETCHCOMMENT(E89) -> 06-487404 10-1L8704 | G89: 1 | H89: =FETCHCOMMENT(G89) -> GRANITE CONSTRUCTION COMPANY | I89: 6,10
A90: MANERI TRAFFIC CONTROL | B90: 33 | C90: 36596996.22 | D90: F | E90: 27 | F90: =FETCHCOMMENT(E90) -> 11-430384 12-0S1404 07-333604 08-1J6104 07-358404 08-1J3004 08-1J2704 08-1J7204 08-1K4004 12-0R3154 12-0R57U4 12-0S7004 08-1K6904 07-370404 12-0R32U4 07-347904 07-350314 07-350334 07-351704 08-1J4504 07-346304 07-369704 08-0G8504 12-0K8704 12-0U9104 07-346504 | G90: 17 | H90: =FETCHCOMMENT(G90) -> HAZARD CONSTRUCTION ENGR, LLC CHUMO CONSTRUCTION INC SULLY-MILLER CONTRACTING COMPANY FBD VANGUARD CONSTRUCTION, INC. YAKAR BEADOR CONSTRUCTION COMPANY, INC. POWELL CONSTRUCTORS, INC. SECURITY PAVING COMPANY, INC. AUTOBAHN CONSTRUCTION, INC. GRANITE CONSTRUCTION COMPANY GRIFFITH COMPANY R.J. NOBLE COMPANY RASMUSSEN/VANGUARD C. A. RASMUSSEN, INC. CROSSTOWN ELECTRICAL & DATA, INC. ALL AMERICAN ASPHALT ORTIZ ENTERPRISES INC | I90: 7,8,11,12
A91: MAVERICK SWEEPING | B91: 43 | C91: 275744 | D91: F | E91: 3 | F91: =FETCHCOMMENT(E91) -> 08-1K4004 07-354704 12-0K8704 | G91: 3 | H91: =FETCHCOMMENT(G91) -> BEADOR CONSTRUCTION COMPANY, INC. CERTIFIED COATING COMPANY ORTIZ ENTERPRISES INC | I91: 7,8,12
A92: MESA TRAFFIC SERVICES | B92: -4142 | C92: 123250 | D92: M | E92: 1 | F92: =FETCHCOMMENT(E92) -> 07-351704 | G92: 1 | H92: =FETCHCOMMENT(G92) -> C. A. RASMUSSEN, INC. | I92: 7
A93: MONZON & SON ENTERPRISES INC | B93: 43 | C93: 15278262.65 | D93: M | E93: 13 | F93: =FETCHCOMMENT(E93) -> 11-430384 12-0S1404 07-333604 08-1J6104 12-0R3134 08-1J2704 08-1J7204 12-0R57U4 07-347904 12-0R3114 12-0K8704 07-346304 07-346504 | G93: 9 | H93: =FETCHCOMMENT(G93) -> HAZARD CONSTRUCTION ENGR, LLC CHUMO CONSTRUCTION INC SULLY-MILLER CONTRACTING COMPANY FBD VANGUARD CONSTRUCTION, INC. PETERSON-CHASE GENERAL ENGINEERING CONSTRUCTION, INC. SECURITY PAVING COMPANY, INC. RASMUSSEN/VANGUARD BEADOR CONSTRUCTION COMPANY, INC. ORTIZ ENTERPRISES INC | I93: 7,8,11,12
A94: MORAN CONSULTING | B94: -4142 | C94: 94640 | D94: M | E94: 1 | F94: =FETCHCOMMENT(E94) -> 07-333604 | G94: 1 | H94: =FETCHCOMMENT(G94) -> SULLY-MILLER CONTRACTING COMPANY | I94: 7
A95: NOLD'S EQUIPMENT | B95: 33 | C95: 362808 | D95: F | E95: 2 | F95: =FETCHCOMMENT(E95) -> 07-333604 07-358404 | G95: 2 | H95: =FETCHCOMMENT(G95) -> SULLY-MILLER CONTRACTING COMPANY YAKAR | I95: 7
A96: PRECISION GRADE, INC. | B96: -4142 | C96: 3996411 | D96: M | E96: 1 | F96: =FETCHCOMMENT(E96) -> 05-1H6914 | G96: 1 | H96: =FETCHCOMMENT(G96) -> PRECISION GRADE, INC. | I96: 5
A97: POLO ENGINEERING, INC. | B97: -4142 | C97: 673013 | D97: F | E97: 1 | F97: =FETCHCOMMENT(E97) -> 07-4P8504 | G97: 1 | H97: =FETCHCOMMENT(G97) -> POLO ENGINEERING, INC. | I97: 7
A98: PRE-CON PRODUCTS, LTD. | B98: -4142 | C98: 658576.66 | D98: M | E98: 5 | F98: =FETCHCOMMENT(E98) -> 08-1K4004 07-346804 07-370404 12-0R3114 07-369704 | G98: 4 | H98: =FETCHCOMMENT(G98) -> BEADOR CONSTRUCTION COMPANY, INC. TORO ENTERPRISES INC GRIFFITH COMPANY C. A. RASMUSSEN, INC. | I98: 7,8,12
A99: PREMIER SIGN SERVICE INC | B99: -4142 | C99: 11068313.04 | D99: M | E99: 5 | F99: =FETCHCOMMENT(E99) -> 12-0R32U4 07-347904 07-348204 12-0K8704 08-1J5404 | G99: 5 | H99: =FETCHCOMMENT(G99) -> R.J. NOBLE COMPANY RASMUSSEN/VANGUARD BOSCO CONSTRUCTORS, INC. ORTIZ ENTERPRISES INC FLATIRON WEST, INC. | I99: 8,12
A100: PREMIER VALLEY TRANSPORT INC | B100: 43 | C100: 2214250 | D100: M | E100: 4 | F100: =FETCHCOMMENT(E100) -> 05-1Q03U4 09-374704 05-1J8604 06-0Y1704 | G100: 1 | H100: =FETCHCOMMENT(G100) -> PAPICH CONSTRUCTION COMPANY, INC. | I100: 5,6,9
A101: PTM GENERAL ENGINEERING | B101: -4142 | C101: 1264843 | D101: F | E101: 3 | F101: =FETCHCOMMENT(E101) -> 07-4P8504 05-1K5104 12-0U9204 | G101: 2 | H101: =FETCHCOMMENT(G101) -> PTM GENERAL ENGINEERING SERVICES, INC. CENTRAL COAST FINANCIAL GROUP, INC. DBA CCFG CONSTRUCTION | I101: 5,7,12
A102: QA CONSTRUCTORS | B102: -4142 | C102: 1585280 | D102: M | E102: 3 | F102: =FETCHCOMMENT(E102) -> 04-0P9204 04-0P7604 04-0P9304 | G102: 3 | H102: =FETCHCOMMENT(G102) -> MYERS & SONS CONSTRUCTION, LLC. ST. FRANCIS ELECTRIC, LLC. BUGLER CONSTRUCTION, INC. | I102: 4
A103: QUALITY TRAFFIC CONTROL | B103: -4142 | C103: 1221070.5 | D103: M | E103: 5 | F103: =FETCHCOMMENT(E103) -> 11-056404 12-0K91U4 07-354704 12-0R3114 11-430194 | G103: 4 | H103: =FETCHCOMMENT(G103) -> HAZARD CONSTRUCTION ENGR, LLC GRANITE CONSTRUCTION COMPANY CERTIFIED COATINGS COMPANY BEADOR CONSTRUCTION COMPANY, INC. | I103: 7,11,12
A104: QUIMU CONTRACTING, INC. | B104: -4142 | C104: 386080 | D104: M | E104: 1 | F104: =FETCHCOMMENT(E104) -> 03-3J9104 | G104: 1 | H104: =FETCHCOMMENT(G104) -> QUIMU CONTRACTING, INC. | I104: 3
A105: RAC CONSTRUCTION | B105: -4142 | C105: 119167.5 | D105: M | E105: 1 | F105: =FETCHCOMMENT(E105) -> 11-430194 | G105: 1 | H105: =FETCHCOMMENT(G105) -> HAZARD CONSTRUCTION COMPANY DBA HAZARD CONSRUCTION ENGR LLC | I105: 11
A106: RANGEL BROTHERS TRUCKING | B106: 43 | C106: 1541400 | D106: M | E106: 1 | F106: =FETCHCOMMENT(E106) -> 07-370404 | G106: 1 | H106: =FETCHCOMMENT(G106) -> GRIFFITH COMPANY | I106: 7
A107: RE CHAFFEE CONSTRUCTION, INC. | B107: -4142 | C107: 450229 | D107: M | E107: 2 | F107: =FETCHCOMMENT(E107) -> 08-1M7404 08-1M0404 | G107: 1 | H107: =FETCHCOMMENT(G107) -> INTERSTATE CIVIL CONSTRUCTION | I107: 8
A108: REYCON CONSTRUCTION | B108: -4142 | C108: 1314820 | D108: M | E108: 1 | F108: =FETCHCOMMENT(E108) -> 08-0G8504 | G108: 1 | H108: =FETCHCOMMENT(G108) -> GRANITE CONSTRUCTION COMPANY | I108: 8
A109: REYNAGA TRANSPORTATION | B109: 43 | C109: 2042160 | D109: M | E109: 3 | F109: =FETCHCOMMENT(E109) -> 07-333604 08-1J6104 07-347904 | G109: 3 | H109: =FETCHCOMMENT(G109) -> SULLY-MILLER CONTRACTING COMPANY FBD VANGUARD CONSTRUCTION, INC. RASMUSSEN/VANGUARD | I109: 7,8
A110: R.M.C. TRUCKING | B110: 43 | C110: 114500 | D110: M | E110: 1 | F110: =FETCHCOMMENT(E110) -> 08-1J7204 | G110: 1 | H110: =FETCHCOMMENT(G110) -> SULLY-MILLER CONTRACTING COMPANY | I110: 8
A111: ROBINSON SWEEPING INC | B111: 43 | C111: 385200 | D111: F | E111: 4 | F111: =FETCHCOMMENT(E111) -> 03-0J01U4 01-0J8904 01-0J2104 03-0J5604 | G111: 1 | H111: =FETCHCOMMENT(G111) -> MERCER-FRASER COMPANY | I111: 1,3
A112: RUPERT CONSTRUCTION SUPPLY | B112: 33 | C112: 1900693.35 | D112: M | E112: 14 | F112: =FETCHCOMMENT(E112) -> 11-430384 05-1J7804 08-1J6104 04-3J2604 01-0H6404 02-1J75U4 04-2Q8004 06-487404 08-1K4004 12-0K91U4 04-0K8004 09-374704 07-347904 05-1G9504 07-346104 | G112: 13 | H112: =FETCHCOMMENT(G112) -> HAZARD CONSTRUCTION ENGR, LLC CALPORTLAND CONSTRUCTION FBD VANGUARD CONSTRUCTION, INC. O.C. JONES AND SONS WYLATTI RESOURCE MANAGEMENT, INC. HAT CREEK CONSTRUCTION & MATERIALS, INC. GORDON N. BALL, INC. GRANITE CONSTRUCTION COMPANY BEADOR CONSTRUCTION COMPANY, INC. GHILOTTI BROS INC PAPICH CONSTRUCTION COMPANY INC RASMUSSEN/VANGUARD POWELL CONSTRUCTORS, INC. | I112: 1,2,4,5,6,7,8,9,11,12
A113: S&S TRUCKING | B113: 43 | C113: 117576 | D113: M | E113: 2 | F113: =FETCHCOMMENT(E113) -> 04-3J2604 04-2Q5504 | G113: 2 | H113: =FETCHCOMMENT(G113) -> O.C. JONES & SONS, INC. BAY CITIES PAVING & GRADING INC | I113: 4
A114: SAFEWAY SIGN COMPANY | B114: -4142 | C114: 1997446.22 | D114: M | E114: 10 | F114: =FETCHCOMMENT(E114) -> 11-430384 08-1K4004 12-0R3154 07-347904 08-1J4504 12-0R3114 07-346304 11-430194 02-2J2204 07-346504 | G114: 6 | H114: =FETCHCOMMENT(G114) -> HAZARD CONSTRUCTION ENGR, LLC BEADOR CONSTRUCTION COMPANY, INC. POWELL CONSTRUCTORS, INC. CHUMO CONSTRUCTION, INC. HIGHWAY SPECIALTY COMPANY, INC. SECURITY PAVING COMPANY, INC. | I114: 2,7,11
A115: SAWMAN CONCRETE CUTTING, INC. | B115: -4142 | C115: 688867.2 | D115: M | E115: 1 | F115: =FETCHCOMMENT(E115) -> 07-347904 | G115: 1 | H115: =FETCHCOMMENT(G115) -> RASMUSSEN/VANGUARD | I115: 7
A116: SHARPLINE SOLUTIONS, INC. | B116: -4142 | C116: 30415.09 | D116: M | E116: 1 | F116: =FETCHCOMMENT(E116) -> 07-351704 | G116: 1 | H116: =FETCHCOMMENT(G116) -> C. A. RASMUSSEN, INC. | I116: 7
A117: SHIELD RENTALS & SALES LLC | B117: -4142 | C117: 219300 | D117: M | E117: 2 | F117: =FETCHCOMMENT(E117) -> 04-2Q8004 04-0Q2004 | G117: 2 | H117: =FETCHCOMMENT(G117) -> GORDON N. BALL, INC. GHILOTTI BROS., INC. | I117: 4
A118: SOCAL WELDING | B118: -4142 | C118: 337930.25 | D118: M | E118: 1 | F118: =FETCHCOMMENT(E118) -> 04-2Q8004 | G118: 1 | H118: =FETCHCOMMENT(G118) -> GORDON N. BALL, INC. | I118: 4
A119: SWPPQUEEN | B119: -4142 | C119: 14425 | D119: F | E119: 1 | F119: =FETCHCOMMENT(E119) -> 04-0P7604 | G119: 1 | H119: =FETCHCOMMENT(G119) -> ST. FRANCIS ELECTRIC, LLC. | I119: 4
A120: TERRA WEST | B120: -4142 | C120: 6325 | D120: M | E120: 3 | F120: =FETCHCOMMENT(E120) -> 11-430384 11-056404 11-430194 | G120: 1 | H120: =FETCHCOMMENT(G120) -> HAZARD CONSTRUCTION ENGR, LLC | I120: 11
A121: TESORO CONSTRACTORS | B121: -4142 | C121: 1149665 | D121: M | E121: 2 | F121: =FETCHCOMMENT(E121) -> 11-430194 07-348504 | G121: 2 | H121: =FETCHCOMMENT(G121) -> HAZARD CONSTRUCTION COMPANY DBA HAZARD CONSRUCTION ENGR LLC YAKAR | I121: 7,11
A122: TOTAL BARRICADE SERVICE INC | B122: -4142 | C122: 647240 | D122: M | E122: 1 | F122: =FETCHCOMMENT(E122) -> 07-346804 | G122: 1 | H122: =FETCHCOMMENT(G122) -> TORO ENTERPRISES INC | I122: 7
A123: TOTAL SITE SUPPLY COMPANY | B123: 33 | C123: 35526.34 | D123: M | E123: 1 | F123: =FETCHCOMMENT(E123) -> 08-1K4004 | G123: 1 | H123: =FETCHCOMMENT(G123) -> BEADOR CONSTRUCTION COMPANY, INC. | I123: 8
A124: TR DIGITAL, INC. | B124: -4142 | C124: 100000 | D124: M | E124: 1 | F124: =FETCHCOMMENT(E124) -> 04-2Q8004 | G124: 1 | H124: =FETCHCOMMENT(G124) -> GORDON N. BALL, INC. | I124: 4
A125: TRANSPACIFIC STEEL LLC | B125: -4142 | C125: 5694292.82 | D125: M | E125: 6 | F125: =FETCHCOMMENT(E125) -> 05-1J7804 04-2Q8004 05-1K4504 06-487404 05-1J8604 06-0W79U4 | G125: 6 | H125: =FETCHCOMMENT(G125) -> CALPORTLAND CONSTRUCTION GORDON N. BALL, INC. GRANITE CONSTRUCTION COMPANY PAPICH CONSTRUCTION COMPANY, INC. FLATIRON WEST, INC. SECURITY PAVING COMPANY, INC. | I125: 5,6
A126: TREESMITH ENTERPRISES | B126: -4142 | C126: 858000 | D126: F | E126: 1 | F126: =FETCHCOMMENT(E126) -> 08-1K6904 | G126: 1 | H126: =FETCHCOMMENT(G126) -> GRANITE CONSTRUCTION COMPANY | I126: 8
A127: TULLY INC | B127: -4142 | C127: 608844.98 | D127: F | E127: 20 | F127: =FETCHCOMMENT(E127) -> 03-4H8704 04-1Q2004 10-0Q2104 01-0F7104 04-0K6404 04-3J2604 01-0H6404 03-3H8304 04-2Q8004 06-487404 10-1L2804 04-4G7804 04-0Q2004 01-0K8904 04-2K3604 10-1H7004 05-1G9504 02-2J2204 03-0J5604 01-0H6504 | G127: 13 | H127: =FETCHCOMMENT(G127) -> O.C. JONES & SONS INC COLUMBIA ELECTRIC, INC. BAY CITIES PAVING & GRADING, INC. GHILOTTI CONSTRUCTION COMPANY, INC. WYLATTI RESOURCE MANAGEMENT, INC. PACIFIC INFRASTRUCTURE CONSTRUCTION, LLC GORDON N. BALL, INC. GRANITE CONSTRUCTION COMPANY GHILOTTI BROS., INC. GEORGE REED, INC. HIGHWAY SPECIALTY COMPANY, INC. WAHLUND CONSTRUCTION, INC. MERCER-FRASER COMPANY | I127: 1,2,3,4,5,6,10
A128: UNITED SWEEPING | B128: 43 | C128: 45000 | D128: M | E128: 1 | F128: =FETCHCOMMENT(E128) -> 10-1K8404 | G128: 1 | H128: =FETCHCOMMENT(G128) -> MOUNTAIN CASCADE INC | I128: 10
A129: UNIVERSAL CONCRETE CONSTRUCTION | B129: -4142 | C129: 1129682 | D129: M | E129: 1 | F129: =FETCHCOMMENT(E129) -> 08-0G8504 | G129: 1 | H129: =FETCHCOMMENT(G129) -> GRANITE CONSTRUCTION COMPANY | I129: 8
A130: V3 CONSTRCTION, INC. | B130: -4142 | C130: 3996938.2 | D130: M | E130: 1 | F130: =FETCHCOMMENT(E130) -> 08-1K6904 | G130: 1 | H130: =FETCHCOMMENT(G130) -> GRANITE CONSTRUCTION COMPANY | I130: 8
A131: VALDIVIA TRUCKING | B131: 43 | C131: 335050 | D131: M | E131: 1 | F131: =FETCHCOMMENT(E131) -> 04-4G7804 | G131: 1 | H131: =FETCHCOMMENT(G131) -> O.C. JONES & SONS, INC. | I131: 4
A132: VELARDE CONSTRUCTION | B132: -4142 | C132: 957173.96 | D132: M | E132: 1 | F132: =FETCHCOMMENT(E132) -> 08-1J5404 | G132: 1 | H132: =FETCHCOMMENT(G132) -> FLATIRON WEST, INC. | I132: 8
A133: WCW INC. | B133: -4142 | C133: 2552139.45 | D133: M | E133: 2 | F133: =FETCHCOMMENT(E133) -> 04-2Q8004 07-369704 | G133: 2 | H133: =FETCHCOMMENT(G133) -> GORDON N. BALL, INC. C. A. RASMUSSEN, INC. | I133: 4,7
A134: WEST PACIFIC CONCRETE | B134: -4142 | C134: 102378.03 | D134: M | E134: 1 | F134: =FETCHCOMMENT(E134) -> 08-1J2704 | G134: 1 | H134: =FETCHCOMMENT(G134) -> SULLY-MILLER CONTRACTING COMPANY | I134: 8
A135: WESTERN TRAFFIC SUPPLY, INC. | B135: 33 | C135: 5356227 | D135: M | E135: 9 | F135: =FETCHCOMMENT(E135) -> 04-2Q6104 04-2K7404 04-0P7604 04-2Q5504 04-3Q8504 04-2Q6504 04-1W0904 04-0AA624 04-2Q5204 | G135: 5 | H135: =FETCHCOMMENT(G135) -> GRANITE ROCK COMPANY BAY CITIES PAVING & GRADING INC ST. FRANCIS ELECTRIC, LLC. TENNYSON ELECTRIC LLC CROSSTOWN ELECTRICAL & DATA, INC. | I135: 4
A136: YMD MATERIAL BROKER | B136: 43 | C136: 240000 | D136: F | E136: 1 | F136: =FETCHCOMMENT(E136) -> 08-1J7204 | G136: 1 | H136: =FETCHCOMMENT(G136) -> SULLY-MILLER CONTRACTING COMPANY | I136: 8
A137: ZABEL ENTERPRISES | B137: 43 | C137: 970500 | D137: M | E137: 2 | F137: =FETCHCOMMENT(E137) -> 01-0J8904 01-0J2104 | G137: 1 | H137: =FETCHCOMMENT(G137) -> MERCER-FRASER COMPANY | I137: 4
F138: =FETCHCOMMENT(E138) ->  | H138: =FETCHCOMMENT(G138) -> 
A140: Native American | B140: Column1 | C140: Dollars | D140: M/F | E140: # of Contracts | F140: Contract # | G140: # of Primes | H140: Prime Name | I140: Districts
A141: CREST EQUIPMENT | B141: -4142 | C141: 534100 | D141: F | E141: 2 | F141: =FETCHCOMMENT(E141) -> 11-056404 11-430194 | G141: 2 | H141: =FETCHCOMMENT(G141) -> O.C. JONES & SONS, INC. HAZARD CONSTRUCTION COMPANY DBA HAZARD CONSRUCTION ENGR LLC | I141: 11
A142: DISABLED AMERICAN VETERAN ENTERPRISES TRUCKING & SWEEPING | B142: 33 | C142: 1049632 | D142: M | E142: 1 | F142: =FETCHCOMMENT(E142) -> 06-0W79U4 | G142: 1 | H142: =FETCHCOMMENT(G142) -> SECURITY PAVING COMPANY, INC. | I142: 6
A143: FORCE TRAFFIC CONTROL | B143: -4142 | C143: 150000 | D143: M | E143: 1 | F143: =FETCHCOMMENT(E143) -> 10-1H7004 | G143: 1 | H143: =FETCHCOMMENT(G143) -> GEORGE REED, INC. | I143: 10
A144: GLOBAL TRANSLOADING | B144: -4142 | C144: 165857 | D144: F | E144: 1 | F144: =FETCHCOMMENT(E144) -> 07-346104 | G144: 1 | H144: =FETCHCOMMENT(G144) -> POWELL CONSTRUCTORS, INC. | I144: 7
A145: G R SUNDBERG, INC. | B145: -4142 | C145: 7546784.25 | D145: M | E145: 6 | F145: =FETCHCOMMENT(E145) -> 01-0K4104 01-0J8904 01-0K9404 06-487404 04-0K8004 04-2K3604 | G145: 4 | H145: =FETCHCOMMENT(G145) -> G R SUNDBERG, INC. MERCER-FRASER COMPANY WYLATTI RESOURCE MANAGEMENT, INC. GHILOTTI BROS INC | I145: 1,4
A146: POWELL CONSTRUCTORS, INC. | B146: -4142 | C146: 520000 | D146: M | E146: 1 | F146: =FETCHCOMMENT(E146) -> 01-0H6504 | G146: 1 | H146: =FETCHCOMMENT(G146) -> WAHLUND CONSTRUCTION, INC. | I146: 1
A147: KRC SAFETY CO INC | B147: 33 | C147: 2481589 | D147: M | E147: 8 | F147: =FETCHCOMMENT(E147) -> 05-1J7804 06-0X2504 05-1Q03U4 05-1K4504 05-1K5104 05-1K6404 06-487404 06-0Y1704 | G147: 4 | H147: =FETCHCOMMENT(G147) -> CALPORTLAND CONSTRUCTION PAPICH CONSTRUCTION COMPANY, INC. GRANITE CONSTRUCTION COMPANY CENTRAL COAST FINANCIAL GROUP, INC. DBA CCFG CONSTRUCTION | I147: 5,6
A148: SAM'S EQUIPMENT & SUPPLIES | B148: 33 | C148: 236621.79 | D148: M | E148: 3 | F148: =FETCHCOMMENT(E148) -> 09-387704 10-1L8704 06-0Y1704 | G148: 3 | H148: =FETCHCOMMENT(G148) -> SB GENERAL ENGINEERING INC GRANITE CONSTRUCTION COMPANY PAPICH CONSTRUCTION COMPANY, INC. | I148: 6,9,10
A149: SPIRIT ROAD OILS | B149: 33 | C149: 579728 | D149: F | E149: 3 | F149: =FETCHCOMMENT(E149) -> 04-2Q6104 04-0K6404 04-0AA624 | G149: 2 | H149: =FETCHCOMMENT(G149) -> GRANITE ROCK COMPANY HAZARD CONSTRUCTION ENGR, LLC | I149: 4
A150: SPURS TRUCKING AND EQUIPMENT, INC. | B150: 43 | C150: 52200 | D150: F | E150: 1 | F150: =FETCHCOMMENT(E150) -> 02-4H0604 | G150: 1 | H150: =FETCHCOMMENT(G150) -> HAT CREEK CONSTRUCTION & MATERIALS, INC. | I150: 2
A151: S.T. RHOADES CONSTRUCTION | B151: -4142 | C151: 3063213.65 | D151: M | E151: 7 | F151: =FETCHCOMMENT(E151) -> 02-4H0604 02-4H03U4 03-2J5904 02-4H0104 02-4H0704 03-1H1404 01-0J2104 | G151: 4 | H151: =FETCHCOMMENT(G151) -> HAT CREEK CONSTRUCTION & MATERIALS, INC. STUDEBAKER ELECTRIC, INC. MARTIN BROTHERS CONSTRUCTION MERCER-FRASER COMPANY | I151: 1,2,3
A152: WEST COAST DRILLING | B152: -4142 | C152: 6544740.15 | D152: F | E152: 2 | F152: =FETCHCOMMENT(E152) -> 06-487404 09-366804 | G152: 2 | H152: =FETCHCOMMENT(G152) -> GRANITE CONSTRUCTION COMPANY PAPICH CONSTRUCTION COMPANY | I152: 6,9
F153: =FETCHCOMMENT(E153) ->  | H153: =FETCHCOMMENT(G153) -> 
F154: =FETCHCOMMENT(E154) ->  | H154: =FETCHCOMMENT(G154) -> 
A156: African American | B156: Column1 | C156: Dollars | D156: M/F | E156: # of Contracts | F156: Contract # | G156: # of Primes | H156: Prime Name | I156: Districts
A157: ALLUVION BIOLOGICAL CONSULTING | B157: -4142 | C157: 160600 | D157: M | E157: 2 | F157: =FETCHCOMMENT(E157) -> 10-0Q2104 01-0J8904 | G157: 2 | H157: =FETCHCOMMENT(G157) -> BAY CITIES PAVING & GRADING, INC. MERCER-FRASER COMPANY | I157: 1,10
A158: AMERICAN TRAFFIC BARRICADE & SAFETY CO | B158: -4142 | C158: 23776.8 | D158: M | E158: 1 | F158: =FETCHCOMMENT(E158) -> 09-387704 | G158: 1 | H158: =FETCHCOMMENT(G158) -> SB GENERAL ENGINEERING INC | I158: 9
A159: APPIAN UDBE SWPPPS | B159: -4142 | C159: 750 | D159: F | E159: 1 | F159: =FETCHCOMMENT(E159) -> 05-1K6404 | G159: 1 | H159: =FETCHCOMMENT(G159) -> GRANITE CONSTRUCTION COMPANY | I159: 5
A160: BARYEH CONSTRUCTION ENGINEERS | B160: -4142 | C160: 666260 | D160: M | E160: 1 | F160: =FETCHCOMMENT(E160) -> 07-346804 | G160: 1 | H160: =FETCHCOMMENT(G160) -> TORO ENTERPRISES INC | I160: 7
A161: BLACK DIAMOND ASPHALT INC | B161: 33 | C161: 7189364.48 | D161: F | E161: 10 | F161: =FETCHCOMMENT(E161) -> 03-0J01U4 03-4H8704 01-0J8904 10-1L2804 04-2Q5504 10-1J8204 02-3H6904 01-0H6004 10-0Q2104 01-0J2104 | G161: 6 | H161: =FETCHCOMMENT(G161) -> MERCER-FRASER COMPANY O.C. JONES & SONS, INC. BAY CITIES PAVING & GRADING INC GEORGE REED, INC. DIG IT CONSTRUCTION, INC. ARGONAUT CONSTRUCTORS | I161: 1,3,4,10
A162: CGO CONSTRUCTION COMPANY | B162: -4142 | C162: 599600 | D162: M | E162: 3 | F162: =FETCHCOMMENT(E162) -> 08-1K4004 11-430194 12-0K8704 | G162: 3 | H162: =FETCHCOMMENT(G162) -> BEADOR CONSTRUCTION COMPANY, INC. HAZARD CONSTRUCTION COMPANY DBA HAZARD CONSRUCTION ENGR LLC ORTIZ ENTERPRISES, INC. | I162: 8,11,12
A163: DBE DIRECT, LLC | B163: -4142 | C163: 1168500 | D163: M | E163: 4 | F163: =FETCHCOMMENT(E163) -> 06-487404 08-1K6904 07-370404 12-0K8704 | G163: 3 | H163: =FETCHCOMMENT(G163) -> GRANITE CONSTRUCTION COMPANY GRIFFITH COMPANY ORTIZ ENTERPRISES, INC. | I163: 6,7,8,12
A164: DEPENDABLE PETROLEUM | B164: 33 | C164: 4025843.7 | D164: M | E164: 8 | F164: =FETCHCOMMENT(E164) -> 07-4X9704 08-1J4504 07-347904 12-0R3114 07-346304 08-0G8504 01-0K8904 10-1H7004 | G164: 6 | H164: =FETCHCOMMENT(G164) -> BEADOR CONSTRUCTION COMPANY, INC. ALL AMERICAN ASPHALT RASMUSSEN/VANGUARD GRANITE CONSTRUCTION COMPANY CHUMO CONSTRUCTION, INC. GEORGE REED, INC. | I164: 1,7,8,10,12
A165: DOUBLE G'S SUPPLY INC | B165: 33 | C165: 36206.66 | D165: F | E165: 1 | F165: =FETCHCOMMENT(E165) -> 11-430194 | G165: 1 | H165: =FETCHCOMMENT(G165) -> HAZARD CONSTRUCTION COMPANY DBA HAZARD CONSRUCTION ENGR LLC | I165: 11
A166: DYNAMIC GENERATOR SERVICE INC. | B166: -4142 | C166: 864025 | D166: M | E166: 2 | F166: =FETCHCOMMENT(E166) -> 10-1J8204 10-1N9004 | G166: 2 | H166: =FETCHCOMMENT(G166) -> GEORGE REED, INC. FBD VANGUARD CONSTRUCTION, INC. | I166: 10
A167: HYDRO2GEOTECH, LLC | B167: -4142 | C167: 247100 | D167: M | E167: 2 | F167: =FETCHCOMMENT(E167) -> 05-1H6504 12-0K91U4 | G167: 1 | H167: =FETCHCOMMENT(G167) -> GRANITE CONSTRUCTION COMPANY | I167: 5,12
A168: K&G CONCRETE PUMPING | B168: -4142 | C168: 44195.6 | D168: M | E168: 2 | F168: =FETCHCOMMENT(E168) -> 05-1K6404 04-2Q8004 | G168: 2 | H168: =FETCHCOMMENT(G168) -> GRANITE CONSTRUCTION COMPANY GORDON N. BALL, INC. | I168: 4,5
A169: MARVELLA STEEL PLACERS | B169: -4142 | C169: 486661.1 | D169: F | E169: 2 | F169: =FETCHCOMMENT(E169) -> 07-348204 12-0R3114 | G169: 2 | H169: =FETCHCOMMENT(G169) -> BOSCO CONSTRUCTORS, INC. BEADOR CONSTRUCTION COMPANY, INC. | I169: 7,12
A170: SNLM LANDSCAPE | B170: -4142 | C170: 328000 | D170: M | E170: 2 | F170: =FETCHCOMMENT(E170) -> 12-0K91U4 08-1M7404 | G170: 2 | H170: =FETCHCOMMENT(G170) -> GRANITE CONSTRUCTION COMPANY INTERSTATE CIVIL CONSTRUCTION | I170: 8,12
A171: SYNERGY TRAFFIC CONTROL | B171: -4142 | C171: 653325 | D171: M | E171: 1 | F171: =FETCHCOMMENT(E171) -> 12-0R3134 | G171: 1 | H171: =FETCHCOMMENT(G171) -> PETERSON-CHASE GENERAL ENGINEERING CONSTRUCTION, INC. | I171: 12
A172: THE QUALITY FIRM, ACS, AC SERVICES | B172: -4142 | C172: 477059 | D172: M | E172: 4 | F172: =FETCHCOMMENT(E172) -> 08-1J6104 08-1J2704 12-0K8704 07-355204 | G172: 4 | H172: =FETCHCOMMENT(G172) -> FBD VANGUARD CONSTRUCTION, INC. SULLY-MILLER CONTRACTING COMPANY ORTIZ ENTERPRISES, INC. GRANITE CONSTRUCTION COMPANY | I172: 7,8,12
A173: THOMPSON CONTRACTING | B173: -4142 | C173: 2516950 | D173: M | E173: 2 | F173: =FETCHCOMMENT(E173) -> 01-0F7104 02-0K6404 | G173: 2 | H173: =FETCHCOMMENT(G173) -> GHILOTTI CONSTRUCTION COMPANY, INC. MCCUEN CONSTRUCTION, INC. | I173: 1,2
A174: TIPCO ENGINEERING, INC. | B174: -4142 | C174: 2060770 | D174: M | E174: 2 | F174: =FETCHCOMMENT(E174) -> 08-1K4004 12-0K91U4 | G174: 2 | H174: =FETCHCOMMENT(G174) -> BEADOR CONSTRUCTION COMPANY, INC. GRANITE CONSTRUCTION COMPANY | I174: 8,12
A175: ULTIMATE SECURITY SERVICES INC | B175: -4142 | C175: 235200 | D175: M | E175: 1 | F175: =FETCHCOMMENT(E175) -> 07-354704 | G175: 1 | H175: =FETCHCOMMENT(G175) -> CERTIFIED COATINGS COMPANY | I175: 7
F176: =FETCHCOMMENT(E176) ->  | H176: =FETCHCOMMENT(G176) -> 
A178: Sub Cont Asian | B178: Column1 | C178: Dollars | D178: M/F | E178: # of Contracts | F178: Contract # | G178: # of Primes | H178: Prime Name | I178: Districts
A179: 5 AB TRANS, INC. | B179: -4142 | C179: 194560 | D179: M | E179: 1 | F179: =FETCHCOMMENT(E179) -> 10-1H7004 | G179: 1 | H179: =FETCHCOMMENT(G179) -> GRANITE CONSTRUCTION COMPANY | I179: 1
A180: A1 TRUCKING SVS INC | B180: 43 | C180: 982657.44 | D180: M | E180: 4 | F180: =FETCHCOMMENT(E180) -> 04-0P7604 04-2Q8004 05-1H6504 05-1G9504 | G180: 3 | H180: =FETCHCOMMENT(G180) -> ST. FRANCIS ELECTRIC, LLC. GORDON N. BALL, INC. GRANITE CONSTRUCTION COMPANY | I180: 4,5
A181: A1 TRUCKING SERVICES INC | B181: 43 | C181: 95520 | D181: M | E181: 2 | F181: =FETCHCOMMENT(E181) -> 04-1W0904 04-0AA624 | G181: 2 | H181: =FETCHCOMMENT(G181) -> CROSSTOWN ELECTRICAL & DATA INC GRANITE ROCK COMPANY | I181: 4
A182: AMERICA PACIFIC CONSTRUCTION | B182: 43 | C182: 285426 | D182: M | E182: 1 | F182: =FETCHCOMMENT(E182) -> 08-1P2804 | G182: 1 | H182: =FETCHCOMMENT(G182) -> AMERICA PACIFIC CONSTRUCTION INC | I182: 8
A183: C.C. PRODUCTS, INC. | B183: 33 | C183: 1396448 | D183: M | E183: 1 | F183: =FETCHCOMMENT(E183) -> 12-0R3114 | G183: 1 | H183: =FETCHCOMMENT(G183) -> BEADOR CONSTRUCTION COMPANY, INC. | I183: 12
A184: CENTRAL TRUCKING, INC. | B184: 43 | C184: 864403.6 | D184: M | E184: 4 | F184: =FETCHCOMMENT(E184) -> 10-0Q2104 10-1L8704 10-1J8204 10-1K8404 | G184: 4 | H184: =FETCHCOMMENT(G184) -> BAY CITIES PAVING & GRADING, INC. GRANITE CONSTRUCTION COMPANY GEORGE REED, INC. MOUNTAIN CASCADE INC | I184: 9,10
A185: DESTINATION ANYWHERE, INC. | B185: 33 | C185: 84000 | D185: M | E185: 1 | F185: =FETCHCOMMENT(E185) -> 10-1L2804 | G185: 1 | H185: =FETCHCOMMENT(G185) -> O.C. JONES & SONS, INC. | I185: 10
A186: GEODE ENVIRONMENTAL | B186: -4142 | C186: 225500 | D186: M | E186: 1 | F186: =FETCHCOMMENT(E186) -> 09-374704 | G186: 1 | H186: =FETCHCOMMENT(G186) -> PAPICH CONSTRUCTION COMPANY | I186: 9
A187: JABI TRUCKING | B187: 43 | C187: 3482110 | D187: M | E187: 2 | F187: =FETCHCOMMENT(E187) -> 01-0H6004 01-0H6404 | G187: 2 | H187: =FETCHCOMMENT(G187) -> ARGONAUT CONSTRUCTORS | I187: 1
A188: JASS BOYS TRUCK LINES | B188: 43 | C188: 3650023 | D188: M | E188: 5 | F188: =FETCHCOMMENT(E188) -> 04-2K7404 04-0K8004 04-2Q5504 04-0Q2004 04-2Q5204 | G188: 2 | H188: =FETCHCOMMENT(G188) -> BAY CITIES PAVING & GRADING, INC. GHILOTTI BROS INC | I188: 4
A189: NAMAN TRUCKING | B189: 43 | C189: 1265085.4 | D189: M | E189: 5 | F189: =FETCHCOMMENT(E189) -> 04-0Q2004 07-347904 07-348204 07-369704 07-346504 | G189: 5 | H189: =FETCHCOMMENT(G189) -> GHILOTTI BROS., INC. RASMUSSEN/VANGUARD BOSCO CONSTRUCTORS, INC. C.A. RASMUSSEN INC SECURITY PAVING COMPANY, INC. | I189: 4,7
A190: R&G TRUCKING | B190: 43 | C190: 289437 | D190: M | E190: 2 | F190: =FETCHCOMMENT(E190) -> 01-0K8904 04-2K3604 | G190: 2 | H190: =FETCHCOMMENT(G190) -> GRANITE CONSTRUCTION COMPANY GHILOTTI BROS., INC. | I190: 1,4
A191: S&S TRUCKING | B191: 43 | C191: 225150 | D191: M | E191: 1 | F191: =FETCHCOMMENT(E191) -> 01-0F7104 | G191: 1 | H191: =FETCHCOMMENT(G191) -> GHILOTTI CONSTRUCTION COMPANY, INC. | I191: 1
A192: SEQUOIA CONSULTANTS | B192: 33 | C192: 2127048.97 | D192: M | E192: 16 | F192: =FETCHCOMMENT(E192) -> 03-4H8704 11-430384 08-1J6104 12-0R3134 11-056404 06-487404 08-1K4004 08-1K6904 09-374704 06-0Y1704 07-347904 07-351704 12-0R3114 07-369704 08-0G8504 11-430194 | G192: 9 | H192: =FETCHCOMMENT(G192) -> O.C. JONES & SONS, INC. HAZARD CONSTRUCTION ENGR, LLC FBD VANGUARD CONSTRUCTION, INC. PETERSON-CHASE GENERAL ENGINEERING CONSTRUCTION, INC. GRANITE CONSTRUCTION COMPANY BEADOR CONSTRUCTION COMPANY, INC. PAPICH CONSTRUCTION COMPANY INC RASMUSSEN/VANGUARD C. A. RASMUSSEN, INC. | I192: 3,6,7,8,9,11,12
A193: SIERRA GEOTECH DBE INC | B193: -4142 | C193: 276815.64 | D193: M | E193: 5 | F193: =FETCHCOMMENT(E193) -> 03-0J01U4 01-0F7104 05-1H6504 04-2Q6504 05-1G9504 | G193: 5 | H193: =FETCHCOMMENT(G193) -> MERCER-FRASER COMPANY GHILOTTI CONSTRUCTION COMPANY, INC. GRANITE CONSTRUCTION COMPANY BAY CITIES PAVING & GRADING, INC. GORDON N BALL INC | I193: 1,3,4,5
A194: TSI ENGINEERING, INC. | B194: -4142 | C194: 6124087 | D194: M | E194: 1 | F194: =FETCHCOMMENT(E194) -> 08-1J3304 | G194: 1 | H194: =FETCHCOMMENT(G194) -> TSI ENGINEERING, INC. | I194: 8
F195: =FETCHCOMMENT(E195) ->  | H195: =FETCHCOMMENT(G195) -> 
F196: =FETCHCOMMENT(E196) ->  | H196: =FETCHCOMMENT(G196) -> 
F197: =FETCHCOMMENT(E197) ->  | H197: =FETCHCOMMENT(G197) -> 
F198: =FETCHCOMMENT(E198) ->  | H198: =FETCHCOMMENT(G198) -> 
F199: =FETCHCOMMENT(E199) ->  | H199: =FETCHCOMMENT(G199) -> 
A201: Asian Pacific | B201: Column1 | C201: Dollars | D201: M/F | E201: # of Contracts | F201: Contract # | G201: # of Primes | H201: Prime Name | I201: Districts
A202: ACCU CONSTRUCTION | B202: -4142 | C202: 1057600 | D202: M | E202: 2 | F202: =FETCHCOMMENT(E202) -> 07-348404 07-356504 | G202: 1 | H202: =FETCHCOMMENT(G202) -> ACCU CONSTRUCTION, INC. | I202: 7
A203: ACE FENCE COMPANY | B203: 33 | C203: 12793369.22 | D203: F | E203: 18 | F203: =FETCHCOMMENT(E203) -> 11-430384 06-0X250 07-333604 12-0R3134 05-1Q03U4 08-1J3004 11-056404 06-487404 07-4X9704 12-0K91U4 12-0R3154 08-1K6904 06-0Y1704 12-0R3114 06-0W79U4 08-0G8504 11-430194 07-346504 | G203: 8 | H203: =FETCHCOMMENT(G203) -> HAZARD CONSTRUCTION ENGR, LLC GRANITE CONSTRUCTION COMPANY SULLY-MILLER CONTRACTING COMPANY PETERSON-CHASE GENERAL ENGINEERING CONSTRUCTION, INC. PAPICH CONSTRUCTION COMPANY, INC. BEADOR CONSTRUCTION COMPANY, INC. POWELL CONSTRUCTORS, INC. SECURITY PAVING COMPANY, INC. | I203: 5,6,7,8,11,12
A204: ACE SWEEPERS & WATER TRUCKS | B204: 43 | C204: 355618.5 | D204: M | E204: 5 | F204: =FETCHCOMMENT(E204) -> 04-0K6404 04-3J2604 10-1L2804 04-4G7804 04-2Q6504 | G204: 2 | H204: =FETCHCOMMENT(G204) -> O.C. JONES & SONS, INC. BAY CITIES PAVING & GRADING, INC. | I204: 4,10
A205: BRIDGE RUBBER BEARING, LLC | B205: -4142 | C205: 112124.04 | D205: M | E205: 4 | F205: =FETCHCOMMENT(E205) -> 06-487404 04-0P9304 07-369704 12-0K8704 | G205: 4 | H205: =FETCHCOMMENT(G205) -> GRANITE CONSTRUCTION COMPANY BUGLER CONSTRUCTION, INC. C. A. RASMUSSEN, INC. ORTIZ ENTERPRISES, INC. | I205: 4,6,7,12
A206: CALIFORNIA PROFESSIONAL | B206: -4142 | C206: 4682780.23 | D206: M | E206: 7 | F206: =FETCHCOMMENT(E206) -> 07-4X9704 08-1J2704 12-0S7004 07-350314 07-350334 08-1J4504 08-1M7404 | G206: 6 | H206: =FETCHCOMMENT(G206) -> BEADOR CONSTRUCTION COMPANY, INC. SULLY-MILLER CONTRACTING COMPANY AUTOBAHN CONSTRUCTION, INC. CROSSTOWN ELECTRICAL & DATA, INC. ALL AMERICAN ASPHALT INTERSTATE CIVIL CONSTRUCTION | I206: 7,8,12
A207: FEHOKO CONCRETE INC | B207: 43 | C207: 308789 | D207: M | E207: 1 | F207: =FETCHCOMMENT(E207) -> 07-346104 | G207: 1 | H207: =FETCHCOMMENT(G207) -> POWELL CONSTRUCTORS, INC. | I207: 7
... 127 more rows
